Cogmind - Beta 11 X8 @@@ ROGUE MODE // 2021.10.29 @ 02:15:45 Player: Torako Result: Destroyed by P-80 Master with Gamma Rifle Performance ------------- Evolutions (7) 3500 Regions Visited (18) 3600 Robots Destroyed (156) 780 Value Destroyed (6806) 6806 Prototype IDs (17) 340 Alien Tech Used (0) 0 Bonus (4845) 4845 TOTAL SCORE: 19871 Bonus ------- High Alert Combat Kills 1087 Follower Combat Kills 2317 Entered Garrisons 400 Used RIF Installer 1000 Network Hubs Disabled 400 Friendly Fire -359 Cogmind --------- Core Integrity 0/1300 Matter 191/300 Energy 98/100 System Corruption 67% Temperature Cool (0) Movement Core (50) Location -3/Research Parts ------- > --- POWER (1) -------- (None) > --- PROPULSION (4) --- Centrium Heavy Treads > --- UTILITY (12) ----- Experimental Signal Interpreter Advanced Targeting Computer > --- WEAPON (4) ------- (None) > --- INVENTORY (5) ---- Light Particle Reactor Peak State ------------ > --- POWER ------------ Particle Reactor > --- PROPULSION ------- Armored Heavy Treads Centrium Heavy Treads > --- UTILITY ---------- Advanced Cooling System High-capacity Storage Unit Experimental Signal Interpreter Advanced Targeting Computer Advanced Targeting Computer Advanced Targeting Computer Advanced Target Analyzer Improved Core Analyzer Stasis Canceller Centrium Medium Armor Plating Centrium Medium Armor Plating Long-range Tractor Beam > --- WEAPON ----------- Gamma Rifle Compact HERF Cannon Railgun Improved KE Penetrator > --- INVENTORY -------- Particle Reactor Particle Reactor Light Particle Reactor Improved Heavy Treads Improved Heavy Treads Armored Heavy Treads Centrium Heavy Treads Advanced Variable Charge Gun HERF Cannon Heavy Shock Bomb Launcher Lance [Rating: 151] Favorites ----------- Power Antimatter Reactor Engine Cooled Ion Engine Power Core Light Nuclear Core Reactor Antimatter Reactor Propulsion Armored Wheel Treads Light Treads Leg Aluminum Leg Wheel Armored Wheel Hover Unit Cooled Aerolev Unit Utility Advanced Targeting Computer Device Advanced Cooling System Storage Large Storage Unit Processor Advanced Targeting Computer Hackware Relay Coupler [NC] Protection Hardened Medium Armor Plating Weapon KE Penetrator Energy Gun Heavy Particle Gun Energy Cannon Advanced Beam Cannon Ballistic Gun KE Penetrator Ballistic Cannon Bore Cannon Launcher Heavy Shock Bomb Launcher Special Weapon Remote Datajack Impact Weapon Great Maul Slashing Weapon Phasing Sabre Piercing Weapon Lance Special Melee Weapon Datajack Build | -11 -10 -10 -9 -9 -9 -8 -8 -7 -7 -7 -6 -5 -5 -5 -5 -5 -4 -3 ------- Run | Scr Mat Min Mat Sto Gar Mat Gar Fac Was Fac Fac Fac Ext Cet Arc Hub Fac Res Slots Evolved 14 | . . . 2 . . 2 . 2 . . 2 2 . . . . 2 2 Power . | . . . . . . . . . . . . . . . . . . . Propulsion 2 | . . . . . . . . 1 . . . . . . . . 1 . Utility 10 | . . . 2 . . 2 . 1 . . 1 2 . . . . . 2 Weapon 2 | . . . . . . . . . . . 1 . . . . . 1 . Parts Attached 185 | 7 12 . 9 16 8 2 15 18 11 5 2 5 16 7 7 7 8 30 Power 11 | 1 2 . 2 . . . . 2 1 . . . . 1 . . . 2 Engine 6 | 1 2 . 2 . . . . 1 . . . . . . . . . . Core 1 | . . . . . . . . 1 . . . . . . . . . . Reactor 4 | . . . . . . . . . 1 . . . . 1 . . . 2 Propulsion 49 | 2 4 . 2 7 4 . 5 2 1 . . . 2 . . 5 1 14 Treads 29 | . 4 . . 6 4 . 2 . 1 . . . 1 . . 1 . 10 Leg 9 | 2 . . 2 . . . . . . . . . . . . 1 . 4 Wheel 10 | . . . . . . . 3 2 . . . . 1 . . 3 1 . Hover 1 | . . . . 1 . . . . . . . . . . . . . . Flight . | . . . . . . . . . . . . . . . . . . . Utility 64 | 1 3 . 3 3 2 1 8 8 5 3 1 5 5 . 6 . 5 5 Device 13 | . 1 . 1 2 1 . . . 2 . . . 2 . 2 . . 2 Storage 5 | 1 1 . . . . . . . . . . . 1 . . . 1 1 Processor 10 | . 1 . 2 . . . . . . 3 . . . . . . 3 1 Hackware 7 | . . . . . . 1 3 3 . . . . . . . . . . Protection 29 | . . . . 1 1 . 5 5 3 . 1 5 2 . 4 . 1 1 Artifact . | . . . . . . . . . . . . . . . . . . . Weapon 61 | 3 3 . 2 6 2 1 2 6 4 2 1 . 9 6 1 2 2 9 Energy Gun 12 | 1 1 . 1 4 1 . . 1 . . . . . . . 1 . 2 Energy Cannon 8 | . . . 1 1 1 . 1 1 . . . . . . . . . 3 Ballistic Gun 18 | 2 2 . . 1 . . . 3 . 2 . . 3 . 1 . 2 2 Ballistic Cannon 5 | . . . . . . . . . . . . . 2 3 . . . . Launcher 6 | . . . . . . . . . . . . . 3 2 . . . 1 Special Weapon 2 | . . . . . . . . 1 1 . . . . . . . . . Impact Weapon 2 | . . . . . . . 1 . 1 . . . . . . . . . Slashing Weapon 2 | . . . . . . . . . . . . . . 1 . 1 . . Piercing Weapon 5 | . . . . . . . . . 2 . 1 . 1 . . . . 1 Special Melee Weapon 1 | . . . . . . 1 . . . . . . . . . . . . Unidentified Prototypes 16 | . 1 . 3 4 . . . . 1 . . . . . 1 2 1 3 Corrupted Parts 3 | . . . . . . . . . . . . . . . . . . 3 System Corruption 20 | . . . . . . . . . . . . . . . . . . 20 Parts Lost 62 | . . . 2 2 1 . 1 10 . . . . 5 4 1 3 2 31 Power 6 | . . . . . . . . 2 . . . . . 1 . . 1 2 Propulsion 16 | . . . 2 . . . . . . . . . 2 . . 1 1 10 Utility 26 | . . . . 2 . . 1 5 . . . . 2 3 1 2 . 10 Weapon 14 | . . . . . 1 . . 3 . . . . 1 . . . . 9 Highest Loss Streak 22 | . . . 2 1 1 . 1 4 . . . . 4 2 1 2 2 22 Average Slot Usage (%) 89 | . 89 100 97 99 100 90 97 83 87 92 93 93 92 85 91 86 91 72 Engine 3 | . 14 14 11 11 11 9 9 . . . . . . . . . . . Reactor 2 | . . . . . . . . . 5 7 6 5 5 5 5 5 4 3 Treads 8 | . 17 28 7 20 22 18 8 . 5 7 6 5 5 5 5 5 5 6 Wheel 5 | . . . . . . . 9 17 8 7 6 5 4 5 5 4 9 1 Device 8 | . 3 14 20 18 12 9 9 . 2 7 6 5 7 11 13 5 5 8 Storage 7 | . 14 14 11 11 11 9 9 7 7 7 6 5 5 5 5 5 5 3 Processor 13 | . 5 . 10 11 11 9 9 5 . 20 20 17 17 17 17 17 28 24 Hackware 3 | . . . . . . 9 18 17 13 . . . . . . . . . Protection 13 | . . . . 3 9 9 5 11 24 16 20 28 25 14 17 22 9 6 Energy Gun 3 | . 14 14 15 10 11 . . 1 . . . . . . . 2 5 1 Energy Cannon 3 | . . . 4 11 11 9 7 4 . . . . . . . . . 2 Ballistic Gun 6 | . 11 14 1 . . . . 4 1 14 13 11 10 11 11 10 14 9 Piercing Weapon 1 | . . . . . . . . . 5 . 6 5 4 . . . . . Naked Turns . | . . . . . . . . . . . . . . . . . . . Heaviest Build 114 | 12 33 33 37 39 39 37 40 45 75 75 72 88 109 109 114 114 94 104 Greatest Support 150 | 20 40 40 40 40 40 40 40 40 40 12 12 12 70 12 12 12 24 150 Greatest Overweight (x) 37 | . 1 . 1 1 . . 2 1 6 6 5 7 9 9 9 37 6 7 Average Overweight (x) 2 | . . . . . . . . . 3 5 5 6 7 7 8 9 3 1 Largest Inventory Capacity 20 | 8 15 15 15 15 15 15 15 15 15 15 15 15 20 20 20 20 20 20 Average Capacity 16 | 7 13 15 15 15 15 15 15 15 15 15 15 15 18 20 20 20 18 14 Most Carried 20 | 5 9 15 15 15 15 14 15 15 15 15 14 12 14 20 20 20 20 15 Average Carried 14 | 3 7 13 14 14 14 14 14 12 14 15 13 11 12 17 18 19 17 11 Final Capacity 20 | 8 15 15 15 15 15 15 15 15 15 15 15 15 20 20 20 20 15 5 Final Carried 20 | 5 9 15 15 15 15 14 15 15 15 15 13 11 12 20 20 20 15 1 Class Distribution -------------------- 34% | Scavenger-Mutant 23% | Bothacker-Mutant 16% | Scavenger-Gunner 12% | Mutant 11% | Scavenger-Tank Dominant Class ---------------- Mutant | -10/Materials Mutant | -10/Mines Mutant | -9/Materials Scavenger-Mutant | -9/Storage Scavenger-Mutant | -9/Garrison Bothacker-Mutant | -8/Materials Bothacker-Mutant | -8/Garrison Bothacker-Mutant | -7/Factory Bothacker-Mutant | -7/Waste Scavenger-Mutant | -7/Factory Scavenger-Mutant | -6/Factory Scavenger-Mutant | -5/Factory Scavenger-Mutant | -5/Extension Scavenger-Gunner | -5/Cetus Scavenger-Gunner | -5/Archives Scavenger-Tank | -5/Hub_04(d) Scavenger-Gunner | -4/Factory Scavenger-Gunner | -3/Research Resources | -11 -10 -10 -9 -9 -9 -8 -8 -7 -7 -7 -6 -5 -5 -5 -5 -5 -4 -3 ----------- Run | Scr Mat Min Mat Sto Gar Mat Gar Fac Was Fac Fac Fac Ext Cet Arc Hub Fac Res Matter Collected 3751 | 226 83 157 86 189 130 20 147 234 183 24 13 87 403 258 240 547 150 574 Remotely 463 | . . . . . . . . . . . . . . . . . . 463 Salvage Created 8064 | 76 230 110 491 850 673 20 951 538 . . 11 . 556 503 332 1082 281 1360 Parts 385 | 3 13 6 29 54 37 1 32 28 . . 4 . 13 23 14 54 13 61 Haulers Intercepted 5 | . 1 . 1 . . . . 1 . . . . . . . 1 1 . Recyclers Shooed 3 | . 1 . . 1 . . . 1 . . . . . . . . . . Parts Field Recycled . | . . . . . . . . . . . . . . . . . . . Retrieved Matter . | . . . . . . . . . . . . . . . . . . . Parts Self-Destructed . | . . . . . . . . . . . . . . . . . . . Prevented . | . . . . . . . . . . . . . . . . . . . Kills | -11 -10 -10 -9 -9 -9 -8 -8 -7 -7 -7 -6 -5 -5 -5 -5 -5 -4 -3 ------- Run | Scr Mat Min Mat Sto Gar Mat Gar Fac Was Fac Fac Fac Ext Cet Arc Hub Fac Res Combat Hostiles Destroyed 121 | . 4 2 9 20 16 1 7 9 . . . . 9 9 4 15 3 13 Melee 2 | . . . . . . 1 . . . . . . 1 . . . . . Guns 66 | . 4 2 9 8 6 . . 4 . . . . 3 4 1 13 3 9 Cannons 35 | . . . . 11 9 . 7 4 . . . . 1 . 3 . . . AOE 12 | . . . . . . . . 1 . . . . 3 3 . 2 . 3 Classes Destroyed 16 | 2 4 . . 1 1 . . 3 . . 1 . 2 . . . . 2 Worker 4 | . . . . . . . . 3 . . . . . . . 1 . . Builder 5 | . . . . . . . . . . . 2 . . . . 1 . 2 Tunneler 1 | 1 . . . . . . . . . . . . . . . . . . Hauler 5 | . 1 . 1 . . . . 1 . . . . . . . 1 1 . Recycler 8 | 1 1 . 1 2 . . . 1 . . . . . . . . . 2 Watcher 10 | . 1 . 1 . . . . . . . . . . 1 . 4 . 3 Swarmer 32 | . 3 . 3 8 3 1 3 4 . . . . . 4 . 2 . 1 Grunt 44 | . 1 2 6 5 8 . 5 2 . . . . 5 1 . 5 . 4 Brawler 3 | . . . . . 2 . . . . . . . 1 . . . . . Duelist 1 | . . . . . . . . . . . . . 1 . . . . . Sentry 21 | . . . . 7 3 . 1 1 . . . . 1 . 4 4 . . Specialist 2 | . . . . . . . . . . . . . . . . . . 2 Hunter 6 | . . . . . . . . 1 . . . . . . . 2 . 3 Programmer 8 | . . . . . . . . 1 . . . . . . . 2 3 2 Heavy 1 | . . . . . . . . . . . . . . . . . . 1 Behemoth 1 | . . . . . . . . . . . . . 1 . . . . . Cetus Guard 4 | . . . . . . . . . . . . . . 4 . . . . Best Kill Streak 11 | 2 3 2 9 11 3 1 4 4 . . 2 . 5 5 3 5 3 5 Combat Bots Only 11 | . 3 2 9 11 3 1 4 2 . . . . 5 5 3 3 1 3 Max Kills in Single Turn 4 | 1 1 1 2 1 2 1 1 2 . . 2 . 1 2 1 4 1 3 Gunslinging . | . . . . . . . . . . . . . . . . . . . Exploded 2 | . . . . . . . . 1 . . . . 1 2 . 2 . 2 Melee 1 | . . . . . . 1 . . . . . . 1 . . . . . Uniques/NPCs Destroyed . | . . . . . . . . . . . . . . . . . . . Combat | -11 -10 -10 -9 -9 -9 -8 -8 -7 -7 -7 -6 -5 -5 -5 -5 -5 -4 -3 -------- Run | Scr Mat Min Mat Sto Gar Mat Gar Fac Was Fac Fac Fac Ext Cet Arc Hub Fac Res Damage Taken 16867 | . 171 112 488 714 432 139 396 1297 . . 34 183 1276 649 368 1340 558 8710 Core 2133 | . 47 24 33 107 63 26 104 151 . . . 27 33 47 76 82 . 1313 Absorbed by Shields 103 | . . . . . . . . . . . . . 25 . . . . 78 Reduced by Siege Mode 7 | . . . . . . . . . . . . . 7 . . . . . Core Remaining (%) 80 | 100 . 71 . . 49 . 76 . . 78 100 . . . . 73 100 . Volleys Fired 372 | 6 22 5 22 45 30 1 33 46 1 . 1 1 29 20 12 44 9 45 Largest 4 | 2 2 2 2 2 2 1 1 2 1 . 2 2 3 3 3 3 4 4 Hottest 233 | 70 70 70 123 124 123 68 68 123 30 . 56 56 123 123 123 162 195 233 Shots Fired 757 | 12 37 10 44 89 61 1 33 72 1 . 2 2 46 34 36 124 36 117 Gun 522 | 12 37 10 43 44 30 . . 49 . . 2 2 28 14 24 101 36 90 Cannon 199 | . . . 1 45 31 1 33 19 . . . . 6 7 12 23 . 21 Launcher 31 | . . . . . . . . . . . . . 12 13 . . . 6 Special 5 | . . . . . . . . 4 1 . . . . . . . . . Kinetic 369 | 6 15 5 . 3 . . . 38 . . 2 2 34 21 36 103 27 77 Thermal 320 | 6 22 5 44 86 61 1 33 30 . . . . . . . 21 9 2 Explosive . | . . . . . . . . . . . . . . . . . . . Electromagnetic 63 | . . . . . . . . . . . . . 12 13 . . . 38 Robot Hit Streak 23 | 3 12 13 4 6 6 . 9 7 2 . 1 3 15 10 15 23 11 17 Robot Miss Streak 5 | 3 3 2 3 2 2 1 2 3 . . 1 . 2 1 1 3 2 5 Penetration Max 1 | . . . . . . . . . . . . . 1 1 1 1 . 1 Secondary Targets 3 | . . 1 1 . . . . . . . . . . . . . . 1 Max Gunslinging Chain 1 | . . 1 1 . . . . . . . . . . . . . . 1 Shots Hit Robots 540 | 6 25 5 27 52 39 . 59 51 6 . 1 2 33 12 31 83 27 81 Core Hits 280 | 3 11 5 17 23 19 2 15 28 1 . 2 . 19 20 13 42 9 51 Critical Kills 20 | . 1 . . 1 1 . . 2 . . . . 2 1 2 2 . 8 Critical Parts Destroyed 29 | . . . . . . . . 1 . . . . 7 2 2 10 3 4 Critical Strikes 62 | . 4 . . 1 2 . . 3 1 . . . 9 3 9 12 3 15 Burn 4 | . 3 . . . 1 . . . . . . . . . . . . . Meltdown 2 | . . . . 1 1 . . . . . . . . . . . . . Destroy 52 | . 1 . . . . . . 3 . . . . 9 3 9 12 3 12 Corrupt 3 | . . . . . . . . . . . . . . . . . . 3 Puncture 1 | . . . . . . . . . 1 . . . . . . . . . Melee Attacks 63 | . . . . . . 1 36 4 5 . . . 6 . . 9 . 2 Impact 25 | . . . . . . . 25 . . . . . . . . . . . Slashing 9 | . . . . . . . . . . . . . . . . 9 . . Piercing 13 | . . . . . . . . . 5 . . . 6 . . . . 2 Sneak Attacks 2 | . . . . . . . 1 . 1 . . . . . . . . . Combat Hostiles 2 | . . . . . . . 1 . 1 . . . . . . . . . Follow-up Attacks . | . . . . . . . . . . . . . . . . . . . Damage Inflicted 17540 | 79 327 71 518 1074 844 9 2298 1034 301 . 300 44 1355 1472 754 3225 866 2969 Guns 8875 | 79 327 71 497 563 434 . . 777 . . 28 44 539 397 587 1960 866 1706 Cannons 2743 | . . . 21 511 410 . 512 246 . . . . 114 51 158 208 . 512 Explosions 3355 | . . . . . . . . . . . 272 . 581 1024 . 800 . 678 Melee 2530 | . . . . . . . 1786 . 301 . . . 121 . . 257 . 65 Ramming 37 | . . . . . . 9 . 11 . . . . . . 9 . . 8 Kinetic 6479 | 29 127 20 . 18 . . . 666 . . 28 44 653 448 745 1602 592 1507 Thermal 5075 | 50 200 51 518 1056 844 . 512 357 . . 272 . . 141 . 566 274 234 Explosive . | . . . . . . . . . . . . . . . . . . . Electromagnetic 3419 | . . . . . . . . . . . . . 581 883 . 800 . 1155 Impact 1786 | . . . . . . . 1786 . . . . . . . . . . . Slashing 257 | . . . . . . . . . . . . . . . . 257 . . Piercing 487 | . . . . . . . . . 301 . . . 121 . . . . 65 Highest Corruption 67 | . . . 4 5 5 . . 1 1 1 . 1 1 1 2 5 8 67 Average Corruption 3 | . . . 4 4 5 . . 1 1 1 . 1 1 1 1 2 1 14 Corruption Purged . | . . . . . . . . . . . . . . . . . . . Effects 103 | . . . 2 16 22 . . . 4 . . 1 5 . 1 10 1 41 Message Errors 22 | . . . . 3 4 . . . 2 . . . 3 . . 4 1 5 Matter Fused 20 | . . . 1 4 8 . . . . . . . . . . . . 7 Heat Flow Errors 10 | . . . . 2 4 . . . . . . . . . . 2 . 2 Energy Discharges 15 | . . . . 4 1 . . . 1 . . . . . 1 3 . 5 Parts Rejected 3 | . . . . . . . . . . . . . . . . . . 3 Data Loss (minor) 11 | . . . 1 2 2 . . . 1 . . 1 2 . . . . 2 Data Loss (major) 4 | . . . . 1 2 . . . . . . . . . . . . 1 Misfires 1 | . . . . . 1 . . . . . . . . . . . . . Misdirections 14 | . . . . . . . . . . . . . . . . . . 14 Weapon Failures 3 | . . . . . . . . . . . . . . . . 1 . 2 Overload Shots . | . . . . . . . . . . . . . . . . . . . Overflow Damage 297 | . . . . . . . 132 . 24 . 46 . . . . 78 . 17 Projectiles 10 | . . . . . . . 8 . . . . . . . . 2 . . Explosions 119 | . . . . . . . . . . . 46 . . . . 56 . 17 Melee 168 | . . . . . . . 124 . 24 . . . . . . 20 . . Knockbacks 3 | . . . . . . . . . . . . . . . . 3 . . Impact . | . . . . . . . . . . . . . . . . . . . Kinetic 3 | . . . . . . . . . . . . . . . . 3 . . Secondary . | . . . . . . . . . . . . . . . . . . . Self-Inflicted Damage 159 | . . . . . . . . 5 . . . . . . 4 100 . 50 Shots 2 | . . . . . . . . . . . . . . . . 1 . 1 Rammed 8 | . . . . . . 3 . 1 . . . . . . 1 . . 3 Targets Rammed 8 | . . . . . . 3 . 1 . . . . . . 1 . . 3 Kicked . | . . . . . . . . . . . . . . . . . . . Crushed . | . . . . . . . . . . . . . . . . . . . Highest Temperature 407 | 27 67 126 59 225 398 . 45 407 9 . . . 5 . . 135 24 260 Average Temperature 58 | 11 26 70 28 51 99 . 14 129 9 . . . 5 . . 28 13 45 Received Heat Transfer 2355 | . 24 66 183 186 192 9 216 276 . . 9 . 307 45 63 261 21 497 Effects 2 | . . . . . 1 . . 1 . . . . . . . . . . Shutdowns 1 | . . . . . . . . 1 . . . . . . . . . . Damage (minor) 1 | . . . . . 1 . . . . . . . . . . . . . Siege Activations 1 | . . . . . . . . . . . . . 1 . . . . . Total Turns 23 | . . . . . . . . . . . . . 23 . . . . . Longest Duration 23 | . . . . . . . . . . . . . 23 . . . . . Robots Corrupted 5 | . . . . . . . . . . . . . 1 2 . 1 . 1 Combat Hostiles 4 | . . . . . . . . . . . . . 1 2 . . . 1 Parts Fried 20 | . . . . . . . 2 . . . . . . 4 . 5 . 9 Impact Corruptions 4 | . . . . . . . 4 . . . . . . . . . . . Robots Melted 2 | . . . . 1 1 . . . . . . . . . . . . . Combat Hostiles 2 | . . . . 1 1 . . . . . . . . . . . . . Parts Melted 23 | . 3 . 2 5 7 . . 2 . . 2 . . . . 1 . 1 Heat Transferred 9247 | 148 814 148 1184 1961 1665 . 925 666 . . 150 . . 200 . 703 296 387 Parts Sabotaged . | . . . . . . . . . . . . . . . . . . . Parts Stolen . | . . . . . . . . . . . . . . . . . . . Parts Stripped . | . . . . . . . . . . . . . . . . . . . Power Chain Reactions 3 | . . . . . . . . . . . . . . 1 . . . 2 Missiles Intercepted . | . . . . . . . . . . . . . . . . . . . Alert | -11 -10 -10 -9 -9 -9 -8 -8 -7 -7 -7 -6 -5 -5 -5 -5 -5 -4 -3 ------- Run | Scr Mat Min Mat Sto Gar Mat Gar Fac Was Fac Fac Fac Ext Cet Arc Hub Fac Res Peak Influence 1425 | 10 185 50 258 608 1010 567 722 412 91 524 661 428 1425 976 543 978 510 245 Initial 792 | . 6 . 19 108 395 492 368 378 91 . 256 323 209 792 390 189 478 8 Average 376 | 2 101 47 165 334 721 513 543 337 54 151 546 346 814 868 465 256 206 75 Maximum Alert Level 4 | . . . 1 2 3 2 3 2 . 2 2 2 4 3 2 3 2 1 Low Security (%) 36 | 100 100 100 41 33 . . . 4 100 53 . . . . . 34 75 92 Level 1 25 | . . . 58 32 4 . 11 91 . 34 22 67 13 . 12 61 . 7 Level 2 20 | . . . . 34 43 100 79 3 . 12 77 32 9 . 87 3 24 . Level 3 15 | . . . . . 52 . 8 . . . . . 62 100 . . . . Level 4 1 | . . . . . . . . . . . . . 14 . . . . . Level 5 . | . . . . . . . . . . . . . . . . . . . High Security . | . . . . . . . . . . . . . . . . . . . Max Security . | . . . . . . . . . . . . . . . . . . . Squads Dispatched 38 | . 2 . . 6 . . . 2 . 2 . . 7 . . 6 3 10 Investigation 9 | . 1 . . . . . . 2 . 1 . . 2 . . 1 1 1 Extermination 4 | . . . . . . . . . . . . . . . . 1 1 2 Reinforcement 16 | . 1 . . 3 . . . . . . . . 4 . . 3 1 4 Assault 1 | . . . . . . . . . . . . . 1 . . . . . Garrison 8 | . . . . 3 . . . . . 1 . . . . . 1 . 3 Intercept . | . . . . . . . . . . . . . . . . . . . Construction Impeded 1 | . . . . . . . . . . . . . 1 . . . . . Haulers Reinforced 1 | . . . . . . . . . . . . . . . . 1 . . Active Scanning Responses . | . . . . . . . . . . . . . . . . . . . Cargo Convoy Interrupts . | . . . . . . . . . . . . . . . . . . . Stealth | -11 -10 -10 -9 -9 -9 -8 -8 -7 -7 -7 -6 -5 -5 -5 -5 -5 -4 -3 --------- Run | Scr Mat Min Mat Sto Gar Mat Gar Fac Was Fac Fac Fac Ext Cet Arc Hub Fac Res Distress Signals 12 | . 1 . . 1 . . . 1 . . . . 5 1 . 3 . . Communications Jammed . | . . . . . . . . . . . . . . . . . . . Distress Signals . | . . . . . . . . . . . . . . . . . . . Times Spotted 269 | . 8 2 11 28 18 5 19 23 1 6 4 1 37 11 6 32 8 49 Peak Tracking Total 11 | . 4 2 7 6 5 4 7 5 1 1 2 1 7 5 1 9 5 11 Tactical Retreats 22 | . . . . 1 5 1 . 3 . . . . 1 . . 1 . 10 Traps | -11 -10 -10 -9 -9 -9 -8 -8 -7 -7 -7 -6 -5 -5 -5 -5 -5 -4 -3 ------- Run | Scr Mat Min Mat Sto Gar Mat Gar Fac Was Fac Fac Fac Ext Cet Arc Hub Fac Res Traps Triggered 17 | . 2 . . 1 . . 3 4 . . . 1 2 . . 1 1 2 Indirectly 2 | . . . . . . . . . . . . . 1 . . 1 . . Trap Hack Attempts 1 | . . . . . . . 1 . . . . . . . . . . . Triggered . | . . . . . . . . . . . . . . . . . . . Disarmed . | . . . . . . . . . . . . . . . . . . . Reprogrammed 1 | . . . . . . . 1 . . . . . . . . . . . Reused . | . . . . . . . . . . . . . . . . . . . Traps Extracted . | . . . . . . . . . . . . . . . . . . . Installed . | . . . . . . . . . . . . . . . . . . . Triggered 2 | . . 1 . . . . . 1 . . . . . . . . . . Machines | -11 -10 -10 -9 -9 -9 -8 -8 -7 -7 -7 -6 -5 -5 -5 -5 -5 -4 -3 ---------- Run | Scr Mat Min Mat Sto Gar Mat Gar Fac Was Fac Fac Fac Ext Cet Arc Hub Fac Res Machines Disabled 31 | . . . . 1 1 . 2 . . . 7 . 3 . 2 12 . 3 Max in Single Turn 8 | . . . . 1 1 . 1 . . . 6 . 1 . 1 8 . 1 Garrison Access 1 | . . . . . . . . 1 . . . . . . . . . . Garrison Relay 3 | . . . . . 1 . 2 . . . . . . . . . . . Network Hub 2 | . . . . . . . . . . . . . . . . 2 . . Machines Sabotaged . | . . . . . . . . . . . . . . . . . . . Garrisons Compromised 1 | . . . . . . . . 1 . . . . . . . . . . Overloaded Fab Kills . | . . . . . . . . . . . . . . . . . . . Hacking | -11 -10 -10 -9 -9 -9 -8 -8 -7 -7 -7 -6 -5 -5 -5 -5 -5 -4 -3 --------- Run | Scr Mat Min Mat Sto Gar Mat Gar Fac Was Fac Fac Fac Ext Cet Arc Hub Fac Res Machines Accessed 37 | . 2 . 1 6 . 1 . 7 . 1 1 . 6 . . 3 3 6 Terminals 31 | . 1 . 1 5 . . . 6 . 1 . . 6 . . 3 3 5 Fabricators 2 | . . . . . . . . . . . 1 . . . . . . 1 Repair Stations . | . . . . . . . . . . . . . . . . . . . Recycling Units 1 | . 1 . . . . . . . . . . . . . . . . . Scanalyzers . | . . . . . . . . . . . . . . . . . . . Garrison Access 3 | . . . . 1 . 1 . 1 . . . . . . . . . . Total Hacks 84 | . 3 . 4 13 . 1 . 13 . 4 1 . 10 . . 6 17 12 Successful 40 | . 2 . 1 8 . 1 . 7 . 2 1 . 5 . . 1 10 2 Failed 44 | . 1 . 3 5 . . . 6 . 2 . . 5 . . 5 7 10 Catastrophic 11 | . 1 . 1 1 . . . 1 . . . . 1 . . 2 2 2 Database Lockouts . | . . . . . . . . . . . . . . . . . . . Manual 38 | . . . 4 3 . . . 9 . 3 1 . 2 . . 2 9 5 Terminals 76 | . 2 . 4 12 . . . 11 . 4 . . 10 . . 6 17 10 Fabricators 3 | . . . . . . . . . . . 1 . . . . . . 2 Repair Stations . | . . . . . . . . . . . . . . . . . . . Recycling Units 1 | . 1 . . . . . . . . . . . . . . . . . Scanalyzers . | . . . . . . . . . . . . . . . . . . . Garrison Access 4 | . . . . 1 . 1 . 2 . . . . . . . . . . Terminal Hacks 25 | . 1 . 1 4 . . . 4 . 2 . . 4 . . 1 7 1 Record 1 | . . . . . . . . 1 . . . . . . . . . . Prototype ID Bank 1 | . . . . 1 . . . . . . . . . . . . . . Open Door 5 | . . . . 2 . . . . . . . . 3 . . . . . Open DSF 2 | . . . . . . . . 1 . . . . . . . . . 1 Level Access Points 1 | . . . . . . . . . . . . . . . . . 1 . Branch Access Points 2 | . 1 . 1 . . . . . . . . . . . . . . . Terminal Index 4 | . . . . . . . . 1 . 1 . . 1 . . . 1 . Unreport Threat 4 | . . . . . . . . . . 1 . . . . . . 3 . Registered Prototypes 1 | . . . . . . . . . . . . . . . . . 1 . Zone Layout 4 | . . . . 1 . . . 1 . . . . . . . 1 1 . Fabricator Hacks . | . . . . . . . . . . . . . . . . . . . Repair Station Hacks . | . . . . . . . . . . . . . . . . . . . Recycling Unit Hacks 1 | . 1 . . . . . . . . . . . . . . . . . Retrieve Components 1 | . 1 . . . . . . . . . . . . . . . . . Scanalyzer . | . . . . . . . . . . . . . . . . . . . Garrison Access Hacks 4 | . . . . 1 . 1 . 2 . . . . . . . . . . Unlock Access 3 | . . . . 1 . 1 . 1 . . . . . . . . . . Seal Access 1 | . . . . . . . . 1 . . . . . . . . . . Unauthorized Hacks 10 | . . . . 3 . . . 1 . . 1 . 1 . . . 3 1 Terminals 9 | . . . . 3 . . . 1 . . . . 1 . . . 3 1 Botnet 9 | . . . . 3 . . . 1 . . . . 1 . . . 3 1 Fabricators 1 | . . . . . . . . . . . 1 . . . . . . . Haulers 1 | . . . . . . . . . . . 1 . . . . . . . Repair Stations . | . . . . . . . . . . . . . . . . . . . Recycling Units . | . . . . . . . . . . . . . . . . . . . Scanalyzers . | . . . . . . . . . . . . . . . . . . . Garrison Access . | . . . . . . . . . . . . . . . . . . . Data Cores Recovered . | . . . . . . . . . . . . . . . . . . . Used . | . . . . . . . . . . . . . . . . . . . Hacking Detections 27 | . 1 . 1 4 . 1 . 6 . 1 . . 5 . . 3 2 3 Full Trace Events 7 | . 1 . . 1 . . . 1 . . . . 2 . . 1 . 1 Feedback Events . | . . . . . . . . . . . . . . . . . . . Feedback Blocked . | . . . . . . . . . . . . . . . . . . . Robot Schematics Acquired . | . . . . . . . . . . . . . . . . . . . Robots Built . | . . . . . . . . . . . . . . . . . . . Authchips . | . . . . . . . . . . . . . . . . . . . Time . | . . . . . . . . . . . . . . . . . . . Total Robot Build Rating . | . . . . . . . . . . . . . . . . . . . Part Schematics Acquired . | . . . . . . . . . . . . . . . . . . . Parts Built . | . . . . . . . . . . . . . . . . . . . Authchips . | . . . . . . . . . . . . . . . . . . . Time . | . . . . . . . . . . . . . . . . . . . Total Part Build Rating . | . . . . . . . . . . . . . . . . . . . Parts Repaired . | . . . . . . . . . . . . . . . . . . . Time . | . . . . . . . . . . . . . . . . . . . Parts Recycled . | . . . . . . . . . . . . . . . . . . . Recycled Matter . | . . . . . . . . . . . . . . . . . . . Retrieved Matter . | . . . . . . . . . . . . . . . . . . . Retrieved Components 10 | . 10 . . . . . . . . . . . . . . . . . Parts Scanalyzed . | . . . . . . . . . . . . . . . . . . . Part Schematics Acquired . | . . . . . . . . . . . . . . . . . . . Parts Damaged . | . . . . . . . . . . . . . . . . . . . Bothacking | -11 -10 -10 -9 -9 -9 -8 -8 -7 -7 -7 -6 -5 -5 -5 -5 -5 -4 -3 ------------ Run | Scr Mat Min Mat Sto Gar Mat Gar Fac Was Fac Fac Fac Ext Cet Arc Hub Fac Res Used RIF Installer 2 | . . . . . 1 . 1 . . . . . . . . . . . Coupler Efficiency 1 | . . . . . . . 1 . . . . . . . . . . . Robots Hacked 13 | . . . . . . . 8 4 1 . . . . . . . . . Non-combat . | . . . . . . . . . . . . . . . . . . . Combat 13 | . . . . . . . 8 4 1 . . . . . . . . . Robot Hacks Applied 14 | . . . . . . . 8 5 1 . . . . . . . . . parse_system 1 | . . . . . . . . 1 . . . . . . . . . . ignore_targets 1 | . . . . . . . . . 1 . . . . . . . . . amplify_resonance 1 | . . . . . . . . 1 . . . . . . . . . . overwrite_iff 6 | . . . . . . . 5 1 . . . . . . . . . . streamctrl_high 1 | . . . . . . . . 1 . . . . . . . . . . formatsys_high 4 | . . . . . . . 3 1 . . . . . . . . . . Relay Couplers Released 13 | . . . . . 5 . 8 . . . . . . . . . . . Machine Destruction 13 | . . . . . 5 . 8 . . . . . . . . . . . Attached 7 | . . . . . . 1 3 3 . . . . . . . . . . Robots Rewired 15 | . . . . . . . . . . . . . 15 . . . . . Allies Hacked . | . . . . . . . . . . . . . . . . . . . Hacks Repelled . | . . . . . . . . . . . . . . . . . . . Allies | -11 -10 -10 -9 -9 -9 -8 -8 -7 -7 -7 -6 -5 -5 -5 -5 -5 -4 -3 -------- Run | Scr Mat Min Mat Sto Gar Mat Gar Fac Was Fac Fac Fac Ext Cet Arc Hub Fac Res Total Allies 50 | . . . . . . . 8 3 20 . . . 19 . . . . . Largest Group 20 | . . . . . . . 2 2 20 20 18 18 14 5 . . . . Highest-Rated Group 606 | . . . . . . . 45 53 606 597 556 556 435 169 . . . . Highest-Rated Ally 37 | . . . . . . . 29 32 35 35 35 36 37 37 . . . . Total Orders . | . . . . . . . . . . . . . . . . . . . Ally Attacks 409 | . . . . . . . 31 18 9 33 18 14 261 25 . . . . Total Damage 9836 | . . . . . . . 500 317 151 1359 671 550 5902 386 . . . . Kills 84 | . . . . . . . 5 3 1 15 7 5 46 2 . . . . Allies Corrupted . | . . . . . . . . . . . . . . . . . . . Allies Melted 1 | . . . . . . . . . . . . . 1 . . . . . Intel | -11 -10 -10 -9 -9 -9 -8 -8 -7 -7 -7 -6 -5 -5 -5 -5 -5 -4 -3 ------- Run | Scr Mat Min Mat Sto Gar Mat Gar Fac Was Fac Fac Fac Ext Cet Arc Hub Fac Res Robot Analysis Total . | . . . . . . . . . . . . . . . . . . . Derelict Logs Recovered . | . . . . . . . . . . . . . . . . . . . Drone Launches . | . . . . . . . . . . . . . . . . . . . Drone Recoveries . | . . . . . . . . . . . . . . . . . . . Exploration | -11 -10 -10 -9 -9 -9 -8 -8 -7 -7 -7 -6 -5 -5 -5 -5 -5 -4 -3 ------------- Run | Scr Mat Min Mat Sto Gar Mat Gar Fac Was Fac Fac Fac Ext Cet Arc Hub Fac Res Turns Passed 9842 | 81 402 150 267 771 876 44 817 823 666 198 113 195 1146 299 263 1117 446 1168 Spaces Moved 5070 | 43 205 80 95 324 468 20 446 621 421 106 62 96 366 110 90 388 276 853 Core 445 | 3 . . . . . . . . . . . . . . . 4 . 438 Treads 1446 | . 134 80 25 302 468 20 173 . . . . . 2 . . . . 242 Legs 203 | 40 71 . 70 22 . . . . . . . . . . . . . . Wheels 2976 | . . . . . . . 273 621 421 106 62 96 364 110 90 384 276 173 Hover . | . . . . . . . . . . . . . . . . . . . Flight . | . . . . . . . . . . . . . . . . . . . Fastest Speed 50 | 50 120 160 160 160 160 160 105 90 95 165 165 180 195 195 210 195 120 50 Average Speed 150 | 115 155 160 182 162 160 160 126 94 142 165 165 194 208 207 214 241 135 109 Slowest Speed 1900 | 120 240 160 190 240 160 160 160 110 180 180 165 195 240 225 225 1900 180 250 Overloaded Moves . | . . . . . . . . . . . . . . . . . . . Propulsion Burnouts . | . . . . . . . . . . . . . . . . . . . Robots Hopped . | . . . . . . . . . . . . . . . . . . . Cave-ins Triggered . | . . . . . . . . . . . . . . . . . . . Exploration Rate (%) 34 | 4 41 18 15 51 58 6 60 20 95 5 3 5 72 57 67 45 10 27 Regions Visited 18 Branch Regions 6 Pre-discovered Areas 1 | . . 1 . . . . . . . . . . . . . . . . Known Exits Taken 5 | . 1 . 1 1 . 1 . . . . . . . . . . 1 . Unknown Exits Taken 9 | 1 . 1 . . . . . . . 1 1 1 1 1 1 1 . . Scrap Searched . | . . . . . . . . . . . . . . . . . . . Spaces Dug 5 | . . . . . . . . . . . . . . . . 5 . . Terrain Destroyed 337 | . . . . . . . . 1 . . 5 . 1 6 4 306 8 6 Melee 1 | . . . . . . . . . . . . . . . . 1 . . Projectile 41 | . . . . . . . . 1 . . . . 1 3 4 18 8 6 AOE 295 | . . . . . . . . . . . 5 . . 3 . 287 . . Terrain Rammed 5 | . . . . . . . . . . . . . . . . . . 5 Walls Destroyed . | . . . . . . . . . . . . . . . . . . . Machines Disabled . | . . . . . . . . . . . . . . . . . . . Actions | -11 -10 -10 -9 -9 -9 -8 -8 -7 -7 -7 -6 -5 -5 -5 -5 -5 -4 -3 --------- Run | Scr Mat Min Mat Sto Gar Mat Gar Fac Was Fac Fac Fac Ext Cet Arc Hub Fac Res Total 6542 | 59 251 93 151 485 542 27 608 784 481 128 71 101 693 149 135 463 329 992 Wait 305 | . 1 1 8 67 14 . 25 63 21 14 7 . 10 6 17 4 19 28 Move 5055 | 42 204 79 94 324 467 20 445 621 420 105 61 95 365 109 89 387 275 853 Hop . | . . . . . . . . . . . . . . . . . . . Pick Up 104 | 4 5 7 7 11 9 . 12 8 7 . . . 1 7 5 5 6 10 Fast Attach 79 | 6 9 . 6 8 1 . 4 6 8 3 . 3 5 . 1 3 4 12 Attach 53 | . 1 . 3 1 1 1 5 9 . . 2 2 3 1 4 1 3 16 Detach 19 | . 4 . 3 1 . . 1 4 1 2 . . 2 . . . . 1 Swap 53 | 1 2 . . 7 6 1 6 3 3 2 . . 8 6 2 3 1 2 Drop 115 | . 3 1 8 21 14 . 13 2 15 2 . . 1 . 4 7 12 12 Fire 372 | 6 22 5 22 45 30 1 33 46 1 . 1 1 29 20 12 44 9 45 Melee 63 | . . . . . . 1 36 4 5 . . . 6 . . 9 . 2 Ram 7 | . . . . . . . . 1 . . . . . . 1 . . 5 Kick . | . . . . . . . . . . . . . . . . . . . Crush 6 | . . . . . . 3 . . . . . . . . . . . 3 Escape Stasis 51 | . . . . . . . 24 16 . . . . 8 . . . . 3 Rewire 259 | . . . . . . . 3 1 . . . . 255 . . . . . Trap 1 | . . . . . . . 1 . . . . . . . . . . . Miscellaneous . | . . . . . . . . . . . . . . . . . . . Route ------- -11/Scrapyard -10/Materials (discovered 2 exits: *Mat / *Min) -10/Mines -9/Materials (discovered 3 exits: Min x2 / *Sto) -9/Storage (discovered 2 exits: *Mat / Gar) -9/Garrison (discovered 3 exits: *Mat x3) -8/Materials -8/Garrison (discovered 3 exits: *Fac x3) -7/Factory -7/Waste -7/Factory -6/Factory -5/Factory -5/Extension (discovered 2 exits: *Fac / *Cet) -5/Cetus -5/Archives (discovered 2 exits: *Hub x2) -5/Hub_04(d) -4/Factory (discovered 4 exits: *Res x4) -3/Research History --------- Turn | Location | Event 13 | -11/Scrapyard | Discovered new exit (range 14) 82 | -11/Scrapyard | Entered Materials 126 | -10/Materials | Identified exit to Mines 324 | -10/Materials | Build established: Mutant 410 | -10/Materials | Discovered new exit (range 4) 484 | -10/Materials | Entered Mines 489 | -10/Mines | Met a Derelict bent on vengeance 541 | -10/Mines | Learned location of Storage (-9) 543 | -10/Mines | Discovered new exit (range 7) 634 | -10/Mines | Entered Materials 634 | -9/Materials | Evolved 2 slots: Utility x2 765 | -9/Materials | Destroyed 9 combat bots 839 | -9/Materials | Identified exit to Mines 839 | -9/Materials | Identified exit to Storage 901 | -9/Materials | Entered Storage 1251 | -9/Storage | Build established: Scavenger-Mutant 1362 | -9/Storage | Garrison activated, responded to threat 1448 | -9/Storage | Destroyed 11 combat bots 1659 | -9/Storage | Discovered new exit (range 16) 1672 | -9/Storage | Identified exit to Garrison 1672 | -9/Storage | Entered Garrison 1702 | -9/Garrison | Triggered checkpoint 1884 | -9/Garrison | Triggered checkpoint 2003 | -9/Garrison | Discovered new exit (range 9) 2192 | -9/Garrison | Discovered new exit (range 13) 2282 | -9/Garrison | Triggered checkpoint 2291 | -9/Garrison | Core integrity fell below 50% 2351 | -9/Garrison | Discovered new exit (range 12) 2377 | -9/Garrison | Installed Relay Interface Framework 2428 | -9/Garrison | Triggered checkpoint 2458 | -9/Garrison | Garrison Relay disabled 2548 | -9/Garrison | Entered Materials 2548 | -8/Materials | Evolved 2 slots: Utility x2 2592 | -8/Materials | Identified exit to Garrison 2592 | -8/Materials | Entered Garrison 2680 | -8/Garrison | Triggered checkpoint 2716 | -8/Garrison | Garrison Relay disabled 2788 | -8/Garrison | Triggered checkpoint 2849 | -8/Garrison | Discovered new exit (range 12) 3037 | -8/Garrison | Build established: Bothacker-Mutant 3059 | -8/Garrison | Triggered checkpoint 3133 | -8/Garrison | Discovered new exit (range 12) 3184 | -8/Garrison | Triggered checkpoint 3243 | -8/Garrison | Discovered new exit (range 10) 3259 | -8/Garrison | Expanded RIF knowledge: Coupler Efficiency 3286 | -8/Garrison | Triggered checkpoint 3338 | -8/Garrison | Garrison Relay disabled 3409 | -8/Garrison | Entered Factory 3409 | -7/Factory | Accompanied by 1 ally 3409 | -7/Factory | Evolved 2 slots: Propulsion x1, Utility x1 3496 | -7/Factory | Lost 4 parts (2p1u1w) 3547 | -7/Factory | Identified exit to Garrison 3671 | -7/Factory | Lost 3 parts (2u1w) 3804 | -7/Factory | Discovered new exit (range 3) 3952 | -7/Factory | Lost 3 parts (2u1w) 4084 | -7/Factory | P-60 Hacker assimilated allied Commando 4a 4232 | -7/Factory | Sucked down chute 4232 | -7/Factory | Entered Waste 4233 | -7/Waste | Joined by Warlord forces that had cleared the area 4380 | -7/Waste | A Compactor rumbled back to life 4383 | -7/Waste | Allies destroyed C-40 Crusher 4640 | -7/Waste | Discovered new exit (range 12) 4898 | -7/Waste | Entered Factory 4898 | -7/Factory | Accompanied by 20 allies 5069 | -7/Factory | Garrison activated, responded to threat 5072 | -7/Factory | Discovered new exit (range 9) 5096 | -7/Factory | Entered another Factory area 5096 | -6/Factory | Accompanied by 18 allies 5096 | -6/Factory | Evolved 2 slots: Utility x1, Weapon x1 5163 | -6/Factory | Discovered new exit (range 13) 5209 | -6/Factory | Entered another Factory area 5209 | -5/Factory | Accompanied by 18 allies 5209 | -5/Factory | Evolved 2 slots: Utility x2 5231 | -5/Factory | Build established: Scavenger-Mutant 5375 | -5/Factory | Discovered new exit (range 15) 5404 | -5/Factory | Entered Extension 5404 | -5/Extension | Accompanied by 11 allies 5945 | -5/Extension | Spotted B-75 Beast 5959 | -5/Extension | Spotted B-75 Beast 5995 | -5/Extension | Allies destroyed B-75 Beast 6011 | -5/Extension | Destroyed B-75 Beast 6039 | -5/Extension | Lost 4 parts (1n2u1w) 6100 | -5/Extension | Rescued a captive Derelict 6289 | -5/Extension | Rescued a captive Derelict 6304 | -5/Extension | First assault squad dispatched 6316 | -5/Extension | Rescued a captive Derelict 6317 | -5/Extension | Rescued a captive Derelict 6506 | -5/Extension | Discovered new exit (range 10) 6508 | -5/Extension | Discovered new exit (range 6) 6549 | -5/Extension | Disrupted transfer network 6550 | -5/Extension | Entered Cetus 6550 | -5/Cetus | Accompanied by 5 allies 6579 | -5/Cetus | Spotted Cetus Guard 6579 | -5/Cetus | Spotted Cetus Guard 6586 | -5/Cetus | Destroyed Cetus Guard 6587 | -5/Cetus | Spotted Cetus Guard 6592 | -5/Cetus | Spotted Cetus Guard 6599 | -5/Cetus | Destroyed Cetus Guard 6600 | -5/Cetus | Destroyed Cetus Guard 6605 | -5/Cetus | Destroyed Cetus Guard 6820 | -5/Cetus | Discovered new exit (range 15) 6849 | -5/Cetus | Entered Archives 7041 | -5/Archives | Discovered new exit (range 16) 7083 | -5/Archives | Discovered new exit (range 14) 7112 | -5/Archives | Entered Hub_04(d) 7350 | -5/Hub_04(d) | Build established: Scavenger-Tank 8161 | -5/Hub_04(d) | Garrison activated, responded to threat 8211 | -5/Hub_04(d) | Discovered new exit (range 5) 8226 | -5/Hub_04(d) | Network Hub disabled 8226 | -5/Hub_04(d) | Network Hub disabled 8227 | -5/Hub_04(d) | Spotted Lightning 8228 | -5/Hub_04(d) | Spotted Lightning 8229 | -5/Hub_04(d) | Spotted Lightning 8229 | -5/Hub_04(d) | Entered Factory 8229 | -4/Factory | Evolved 2 slots: Propulsion x1, Weapon x1 8266 | -4/Factory | Found Prototype Processor 8266 | -4/Factory | Identified Exp. Signal Interpreter 8458 | -4/Factory | Identified exit to Research 8534 | -4/Factory | Build established: Scavenger-Gunner 8675 | -4/Factory | Entered Research 8675 | -3/Research | Evolved 2 slots: Utility x2 9401 | -3/Research | System corruption reached 10% 9536 | -3/Research | Garrison activated, responded to threat 9628 | -3/Research | System corruption reached 30% 9668 | -3/Research | Spotted B-86 Titan 9673 | -3/Research | Core integrity fell below 50% 9687 | -3/Research | Spotted B-86 Titan 9695 | -3/Research | Lost 22 parts (2p5n9u6w) 9757 | -3/Research | Lost 3 parts (3n) 9786 | -3/Research | Core integrity fell below 20% 9831 | -3/Research | Build established: Mutant 9843 | -3/Research | Destroyed by P-80 Master with Gamma Rifle Last Messages --------------- P-80 Master resets P-80 Master, system corruption cleaned. Rammed Mason Extractor. Destabilizing: System corrupted (+2). Mason Extractor disabled. Slammed into P-80 Master. Adv. Targeting Computer destroyed. Slammed into P-80 Master. System corrupted: Matter fused (-7). P-80 Master resets P-80 Master, system corruption cleaned. Centrium Heavy Treads destroyed. Triggered Stasis Trap. A bubble of rippling energy engulfs the area. Field strength at 94. Field strength at 88. Field strength at 68. Field strength at 27. Penetrated by Slug. Stasis field depleted. System corrupted: Matter fused (-9). Subatomic Condenser disabled. Map ----- +----------------------------------------------------+ | ???# #???????????????# ## # #??????# #? | | ??## *%##???????#####??# ## # #??????#+## #? | | ### ######### ?# ## # #??#? ??# #? | | % ## ?# ## # #??# ??# #? | | = ## # #? # #??# ?# #? | | ## # ####+## #??# # # | | ### #### ##= + #??# + + | | ??###"###### ## # #### ##### #??# # # | | ????#!][ # ######### #### #???? #??#####/## #? | | ????# / ####### ## #???? #??????# #? | | ????# # "" ## #???? #??????# #? | | ????# # T" ## #?????#??????# #? | | ????# # ## #????????????# #? | | ????# #######+### ## #????????????# #? | | ????########????? ?###+####+#???# ######## #? | | ????????????????? ?? ???????# #? | | ???????????????? # ??????######### #? | | ???????????????? # "" #????????????# ## | | ??????????????? ! # "" #?????######?# | | ??????????????? # T" #?????# ] # | | ??????????????######## "" #?????# # | | ?????????????????????# ""? #?????# ]] / | | ?????????????????????# ??#?????# ] # ##### | | ?????????????????????# ????????# # #???? | | ??????????????##############????????#= ?# #???? | | ??????????????# @ #????????######## #???? | | ??????????????# #?##############" ##### | | ??????????????# """ "" #?# # = # | | ?????########## """ """pp#?# + *%[# | | ?????# # """ "" #?# #% = # | | ?????# # p p #?# # #?? | | ?????# # p #?####+##+### #??? | | ?????# """ # """ """p ###??# #???? | | ?????# "" # """ """ # ?# %##### | | ?????# """ # """ """ # ?# "%" | | ?????# # # # "% | | ?????# # g # # = | | ?????# ! #######/###/## + | | ???########/####### ## ########### | | ???# + ## ??????????# #### | | ???# # ## ???????????# #??? | | ???# # ## ??????????# #?? | | ???# ! # ######????????# #?? | | ???# + ????? +?? | | ???# #+######### ##+#????????### #?? | | ???# # ??????# #####?????????????# #?? | | ???# # ????# #?????????????????#######?? | | ???# # ??# #?????????????????????????? | | ???###### ## #?????????????????????????? | | ???################ #?????????????????????????? | +----------------------------------------------------+ Best States ------------- Heat Dissipation 117 Energy Generation 23 Energy Capacity 340 Matter Stores 300 Matter Capacity 300 Sight Range 20 Terrain Scan Density 10 Armor Coverage 2250 Propulsion Shielding 66 Evasion (%) 55 Targeting Accuracy 24 Target Analysis 8 Core Analysis 8 Recoil Reduction 4 Stasis Canceling 1 Relay Coupler Types 3 Relay Coupler Value 81 Item Schematics ----------------- None Robot Schematics ------------------ None Fabricated ------------ Nothing Alien Tech Used ----------------- None Achievements -------------- None Challenges ------------ None Game ------ Seed TrackerReclamationMegatreads Manual? 0 Play Time 01:25:00 Cumulative 292.6 hours Start 2021.10.29 @ 00:47:54 End 2021.10.29 @ 02:15:45 Sessions 1 Manual Loads 0 Difficulty Rogue Special Mode None Game No. 288 Rogue 288 Adventurer 0 Explorer 0 Win Type - Total 15 Types 9/0/4/2/0/0/0/0/0 Lore% 81 Gallery% 87 Achievement% 76 Wizard Run 0 Options --------- ASCII 0 Keyboard 1 Movement Numpad Keybinds 0 Fullscreen 1 Font 18/SmallcapsGlow Map View 76x50 Tactical HUD 1 Map Filters NONE Filters NONE Steam 1 RUN: 40e443d7-ae59-4cff-a8d0-eaa998bf3926